fUST/lending_fUST_20240625
["ID","MTS","AMOUNT","RATE_DAILY","PERIOD"]
[330317487,1719256241569,-500.0,0.00016438,2]
[330317488,1719256241579,-500.0,0.00016438,2]
[330317489,1719256241588,-500.0,0.00016438,2]
[330317490,1719256241598,-500.0,0.00016438,2]
[330317491,1719256241607,-500.0,0.00016438,2]
[330317492,1719256241617,-500.0,0.00016438,2]
[330317493,1719256241627,-500.0,0.00016438,2]
[330317494,1719256241636,-500.0,0.00016438,2]
[330317495,1719256241646,-500.0,0.00016438,2]
[330317496,1719256241656,-500.0,0.00016438,2]
[330317497,1719256241666,-500.0,0.00016438,2]
[330317498,1719256241675,-504.51931464,0.00016438,2]
[330317499,1719256241685,-500.0,0.00016438,2]
[330317500,1719256241698,-500.0,0.00016438,2]
[330317501,1719256241707,-509.93583169,0.00016438,2]
[330317502,1719256241717,-500.0,0.00016438,2]
[330317503,1719256241727,-515.52002573,0.00016438,2]
[330317504,1719256241737,-500.0,0.00016438,2]
[330317505,1719256241746,-500.0,0.00016438,2]
[330317506,1719256241756,-500.0,0.00016438,2]
[330317507,1719256241766,-500.0,0.00016438,2]
[330317508,1719256241775,-505.0900718,0.00016438,2]
[330317509,1719256241785,-500.0,0.00016438,2]
[330317510,1719256241795,-500.0,0.00016438,2]
[330317511,1719256241805,-500.0,0.00016438,2]
[330317512,1719256241814,-500.0,0.00016438,2]
[330317513,1719256241823,-500.0,0.00016438,2]
[330317514,1719256241833,-500.0,0.00016438,2]
[330317515,1719256241843,-500.0,0.00016438,2]
[330317516,1719256241852,-500.0,0.00016438,2]
[330317517,1719256241862,-500.0,0.00016438,2]
[330317518,1719256241872,-560.03,0.00016438,2]
[330317519,1719256241881,-500.0,0.00016438,2]
[330317520,1719256241891,-500.0,0.00016438,2]
[330317521,1719256241901,-687.65,0.00016438,2]
[330317522,1719256241910,-500.0,0.00016438,2]
[330317523,1719256241921,-500.0,0.00016438,2]
[330317524,1719256241931,-500.0,0.00016438,2]
[330317525,1719256241943,-500.0,0.00016438,2]
[330317526,1719256241953,-500.0,0.00016438,2]
[330317527,1719256241964,-500.0,0.00016438,2]
[330317528,1719256241978,-500.0,0.00016438,2]
[330317529,1719256241988,-500.0,0.00016438,2]
[330317530,1719256241998,-500.0,0.00016438,2]
[330317531,1719256242009,-500.0,0.00016438,2]
[330317532,1719256242020,-324.48980073,0.00016438,2]
[330317533,1719256242030,-500.0,0.00016438,2]
[330317534,1719256242040,-508.16738939,0.00016438,2]
[330317535,1719256242050,-500.0,0.00016438,2]
[330317536,1719256242059,-500.0,0.00016438,2]
[330317537,1719256242070,-500.0,0.00016438,2]
[330317538,1719256242080,-500.0,0.00016438,2]
[330317539,1719256242090,-553.0,0.00016438,2]
[330317540,1719256242101,-500.0,0.00016438,2]
[330317541,1719256242110,-500.0,0.00016438,2]
[330317542,1719256242120,-500.0,0.00016438,2]
[330317543,1719256242130,-500.0,0.00016438,2]
[330317544,1719256242140,-500.0,0.00016438,2]
[330317545,1719256242150,-500.0,0.00016438,2]
[330317546,1719256242159,-500.0,0.00016438,2]
[330317547,1719256242169,-974.75,0.00016438,2]
[330317548,1719256242180,-500.0,0.00016438,2]
[330317549,1719256242192,-500.0,0.00016438,2]
[330317550,1719256242202,-1047.68,0.00016438,2]
[330317551,1719256242212,-500.0,0.00016438,2]
[330317552,1719256242222,-500.0,0.00016438,2]
[330317553,1719256242232,-541.46171201,0.00016438,2]
[330317554,1719256242242,-500.0,0.00016438,2]
[330317555,1719256242253,-500.0,0.00016438,2]
[330317556,1719256242263,-500.0,0.00016438,2]
[330317557,1719256242273,-500.0,0.00016438,2]
[330317558,1719256242284,-500.0,0.00016438,2]
[330317559,1719256242293,-500.0,0.00016438,2]
[330317560,1719256242302,-500.0,0.00016438,2]
[330317561,1719256242311,-500.0,0.00016438,2]
[330317562,1719256242321,-500.0,0.00016438,2]
[330317563,1719256242331,-500.0,0.00016438,2]
[330317564,1719256242340,-506.70095639,0.00016438,2]
[330317565,1719256242349,-500.0,0.00016438,2]
[330317566,1719256242359,-601.24839308,0.00016438,2]
[330317567,1719256242369,-500.0,0.00016438,2]
[330317568,1719256242378,-500.0,0.00016438,2]
[330317569,1719256242387,-500.0,0.00016438,2]
[330317570,1719256242398,-500.0,0.00016438,2]
[330317571,1719256242407,-500.0,0.00016438,2]
[330317572,1719256242417,-500.0,0.00016438,2]
[330317573,1719256242428,-500.0,0.00016438,2]
[330317574,1719256242440,-21241.98,0.00016438,2]
[330317575,1719256242450,-500.0,0.00016438,2]
[330317576,1719256242460,-500.0,0.00016438,2]
[330317577,1719256242470,-500.0,0.00016438,2]
[330317578,1719256242480,-500.0,0.00016438,2]
[330317579,1719256242490,-1177.55,0.00016438,2]
[330317580,1719256242499,-500.0,0.00016438,2]
[330317581,1719256242508,-500.0,0.00016438,2]
[330317582,1719256242518,-500.0,0.00016438,2]
[330317583,1719256242527,-500.0,0.00016438,2]
[330317584,1719256242536,-500.0,0.00016438,2]
[330317585,1719256242545,-1674.21,0.00016438,2]
[330317586,1719256242555,-250.0,0.00016438,2]
[330317587,1719256242564,-525.79744141,0.00016438,2]
[330317588,1719256242573,-500.0,0.00016438,2]
[330317589,1719256242583,-500.0,0.00016438,2]
[330317590,1719256242592,-502.92790254,0.00016438,2]
[330317591,1719256242601,-500.0,0.00016438,2]
[330317592,1719256242610,-500.0,0.00016438,2]
[330317593,1719256242620,-504.01179433,0.00016438,2]
[330317594,1719256242630,-500.0,0.00016438,2]
[330317595,1719256242639,-549.21854551,0.00016438,2]
[330317596,1719256242648,-500.0,0.00016438,2]
[330317597,1719256242658,-500.0,0.00016438,2]
[330317598,1719256242668,-317.92,0.00016438,2]
[330317599,1719256242678,-500.0,0.00016438,2]
[330317600,1719256242689,-500.0,0.00016438,2]
[330317601,1719256242699,-633.25434302,0.00016438,2]
[330317602,1719256242709,-3081.79,0.00016438,2]
[330317603,1719256242718,-500.0,0.00016438,2]
[330317604,1719256242728,-500.0,0.00016438,2]
[330317605,1719256242737,-500.0,0.00016438,2]
[330317606,1719256242747,-500.0,0.00016438,2]
[330317607,1719256242758,-500.0,0.00016438,2]
[330317608,1719256242768,-931.84,0.00016438,2]
[330317609,1719256242778,-4180.45658449,0.00016438,2]
[330317610,1719256242788,-592.17,0.00016438,2]
[330317611,1719256242799,-234.81807462,0.00016438,2]
[330317612,1719256242809,-500.0,0.00016438,2]
[330317613,1719256242819,-500.0,0.00016438,2]
[330317614,1719256242829,-500.0,0.00016438,2]
[330317615,1719256242840,-500.0,0.00016438,2]
[330317616,1719256242849,-615.35941525,0.00016438,2]
[330317617,1719256242859,-500.0,0.00016438,2]
[330317618,1719256242868,-3591.74,0.00016438,2]
[330317619,1719256242878,-500.0,0.00016438,2]
[330317620,1719256242888,-500.0,0.00016438,2]
[330317621,1719256242897,-500.0,0.00016438,2]
[330317622,1719256242907,-500.0,0.00016438,2]
[330317623,1719256242916,-500.0,0.00016438,2]
[330317624,1719256242926,-508.70147791,0.00016438,2]
[330317625,1719256242936,-500.0,0.00016438,2]
[330317626,1719256242946,-768.33,0.00016438,2]
[330317627,1719256242956,-500.0,0.00016438,2]
[330317628,1719256242971,-500.0,0.00016438,2]
[330317629,1719256242981,-500.0,0.00016438,2]
[330317630,1719256242990,-500.0,0.00016438,2]
[330317631,1719256243000,-500.0,0.00016438,2]
[330317632,1719256243011,-500.0,0.00016438,2]
[330317633,1719256243021,-500.0,0.00016438,2]
[330317634,1719256243031,-2962.01,0.00016438,2]
[330317635,1719256243040,-500.0,0.00016438,2]
[330317636,1719256243050,-2709.34,0.00016438,2]
[330317637,1719256243060,-500.0,0.00016438,2]
[330317638,1719256243069,-500.0,0.00016438,2]
[330317639,1719256243079,-500.0,0.00016438,2]
[330317640,1719256243089,-500.0,0.00016438,2]
[330317641,1719256243099,-500.0,0.00016438,2]
[330317642,1719256243108,-500.0,0.00016438,2]
[330317643,1719256243118,-500.0,0.00016438,2]
[330317644,1719256243128,-500.0,0.00016438,2]
[330317645,1719256243138,-500.0,0.00016438,2]
[330317646,1719256243147,-500.0,0.00016438,2]
[330317647,1719256243157,-500.0,0.00016438,2]
[330317648,1719256243167,-500.0,0.00016438,2]
[330317649,1719256243176,-500.0,0.00016438,2]
[330317650,1719256243186,-886.71,0.00016438,2]
[330317651,1719256243200,-500.0,0.00016438,2]
[330317652,1719256243209,-621.19,0.00016438,2]
[330317653,1719256243218,-591.58,0.00016438,2]
[330317654,1719256243231,-1403.22,0.00016438,2]
[330317655,1719256243241,-566.64,0.00016438,2]
[330317656,1719256243251,-511.82789799,0.00016438,2]
[330317657,1719256243261,-504.17106983,0.00016438,2]
[330317658,1719256243271,-500.0,0.00016438,2]
[330317659,1719256243280,-940.88,0.00016438,2]
[330317660,1719256243290,-526.10548931,0.00016438,2]
[330317661,1719256243299,-8433.7,0.00016438,2]
[330317662,1719256243410,-500.0,0.00016438,2]
[330317663,1719256243421,-500.0,0.00016438,2]
[330317664,1719256243432,-500.0,0.00016438,2]
[330317665,1719256243446,-500.0,0.00016438,2]
[330317666,1719256243455,-500.0,0.00016438,2]
[330317667,1719256243466,-11428.24,0.00016438,2]
[330317668,1719256243475,-500.0,0.00016438,2]
[330317669,1719256243484,-500.0,0.00016438,2]
[330317670,1719256243493,-500.0,0.00016438,2]
[330317671,1719256243503,-500.0,0.00016438,2]
[330317672,1719256243513,-500.0,0.00016438,2]
[330317673,1719256243523,-3497.16,0.00016438,2]
[330317674,1719256243533,-500.0,0.00016438,2]
[330317675,1719256243543,-500.0,0.00016438,2]
[330317676,1719256243553,-500.0,0.00016438,2]
[330317677,1719256243562,-303.94274118,0.00016438,2]
[330317678,1719256243571,-500.0,0.00016438,2]
[330317679,1719256243580,-665.28,0.00016438,2]
[330317680,1719256243590,-500.0,0.00016438,2]
[330317681,1719256243600,-500.0,0.00016438,2]
[330317682,1719256243609,-500.0,0.00016438,2]
[330317683,1719256243620,-500.0,0.00016438,2]
[330317684,1719256243629,-500.0,0.00016438,2]
[330317685,1719256243639,-500.0,0.00016438,2]
[330317686,1719256243649,-500.0,0.00016438,2]
[330317687,1719256243659,-500.0,0.00016438,2]
[330317688,1719256243669,-500.0,0.00016438,2]
[330317689,1719256243678,-500.0,0.00016438,2]
[330317690,1719256243688,-500.0,0.00016438,2]
[330317691,1719256243697,-500.0,0.00016438,2]
[330317692,1719256243706,-500.0,0.00016438,2]
[330317693,1719256243716,-500.0,0.00016438,2]
[330317694,1719256243726,-365.79837686,0.00016438,2]
[330317695,1719256243736,-500.0,0.00016438,2]
[330317696,1719256243746,-618.36,0.00016438,2]
[330317697,1719256243755,-1407.42,0.00016438,2]
[330317698,1719256243765,-500.0,0.00016438,2]
[330317699,1719256243775,-500.0,0.00016438,2]
[330317700,1719256243785,-751.97,0.00016438,2]
[330317701,1719256243795,-532.30448464,0.00016438,2]
[330317702,1719256243805,-500.0,0.00016438,2]
[330317703,1719256243815,-500.0,0.00016438,2]
[330317704,1719256243825,-2203.73,0.00016438,2]
[330317705,1719256243835,-2369.55,0.00016438,2]
[330317706,1719256243845,-500.0,0.00016438,2]
[330317707,1719256243854,-1433.24,0.00016438,2]
[330317708,1719256243864,-500.0,0.00016438,2]
[330317709,1719256243874,-500.0,0.00016438,2]
[330317710,1719256243883,-500.0,0.00016438,2]
[330317711,1719256243893,-500.0,0.00016438,2]
[330317713,1719256243903,-509.53,0.00016438,2]
[330317714,1719256243912,-500.0,0.00016438,2]
[330317717,1719256243922,-500.0,0.00016438,2]
[330317718,1719256243931,-8497.74,0.00016438,2]
[330317721,1719256243947,-505.86142669,0.00016438,2]
[330317724,1719256243961,-478.48029184,0.00016438,2]
[330317728,1719256243971,-500.0,0.00016438,2]
[330317731,1719256243983,-500.0,0.00016438,2]
[330317733,1719256243992,-500.0,0.00016438,2]
[330317734,1719256244002,-500.0,0.00016438,2]
[330317735,1719256244012,-492.1976022,0.00016438,2]
[330317736,1719256244021,-500.0,0.00016438,2]
[330317737,1719256244031,-532.16776344,0.00016438,2]
[330317738,1719256244040,-500.0,0.00016438,2]
[330317739,1719256244052,-500.0,0.00016438,2]
[330317740,1719256244062,-878.75,0.00016438,2]
[330317741,1719256244071,-500.0,0.00016438,2]
[330317742,1719256244080,-5670.49,0.00016438,2]
[330317743,1719256244089,-500.0,0.00016438,2]
[330317744,1719256244099,-500.0,0.00016438,2]
[330317745,1719256244108,-500.0,0.00016438,2]
[330317746,1719256244118,-500.0,0.00016438,2]
[330317747,1719256244127,-500.0,0.00016438,2]
[330317748,1719256244137,-531.22598985,0.00016438,2]
[330317749,1719256244147,-500.0,0.00016438,2]
[330317750,1719256244157,-500.0,0.00016438,2]
[330317751,1719256244168,-732.82,0.00016438,2]
[330317752,1719256244178,-950.37,0.00016438,2]
[330317753,1719256244187,-500.0,0.00016438,2]
[330317754,1719256244199,-2810.54,0.00016438,2]
[330317755,1719256244208,-500.0,0.00016438,2]
[330317756,1719256244218,-500.0,0.00016438,2]
[330317757,1719256244227,-500.0,0.00016438,2]
[330317758,1719256244237,-500.0,0.00016438,2]
[330317759,1719256244247,-500.0,0.00016438,2]
[330317760,1719256244257,-2826.99,0.00016438,2]
[330317761,1719256244267,-500.0,0.00016438,2]
[330317762,1719256244276,-500.0,0.00016438,2]
[330317763,1719256244285,-500.0,0.00016438,2]
[330317764,1719256244294,-500.0,0.00016438,2]
[330317765,1719256244304,-500.0,0.00016438,2]
[330317766,1719256244314,-500.0,0.00016438,2]
[330317767,1719256244323,-500.0,0.00016438,2]
[330317768,1719256244333,-500.0,0.00016438,2]
[330317769,1719256244343,-500.0,0.00016438,2]
[330317770,1719256244353,-725.3,0.00016438,2]
[330317771,1719256244362,-500.0,0.00016438,2]
[330317772,1719256244372,-500.0,0.00016438,2]
[330317773,1719256244381,-500.0,0.00016438,2]
[330317774,1719256244391,-500.0,0.00016438,2]
[330317775,1719256244400,-500.0,0.00016438,2]
[330317776,1719256244409,-500.0,0.00016438,2]
[330317777,1719256244419,-500.0,0.00016438,2]
[330317778,1719256244430,-435.11972779,0.00016438,2]
[330317779,1719256244441,-1586.85,0.00016438,2]
[330317780,1719256244450,-208.2041734,0.00016498,2]
[330317781,1719256244460,-1356.179005,0.000165,2]
[330317782,1719256244469,-276.08930439,0.00016536,2]
[330317783,1719256244479,-287.09196786,0.00016605,2]
[330317784,1719256244488,-500.0,0.00016712,2]
[330317785,1719256244498,-500.0,0.00016712,2]
[330317786,1719256244507,-500.0,0.00016712,2]
[330317787,1719256244517,-500.0,0.00016712,2]
[330317788,1719256244527,-500.0,0.00016712,2]
[330317789,1719256244536,-516.92566186,0.00016712,2]
[330317790,1719256244546,-500.0,0.00016712,2]
[330317791,1719256244555,-500.0,0.00016712,2]
[330317792,1719256244565,-500.0,0.00016712,2]
[330317793,1719256244574,-500.0,0.00016712,2]
[330317794,1719256244584,-500.0,0.00016712,2]
[330317795,1719256244594,-500.0,0.00016712,2]
[330317796,1719256244603,-500.0,0.00016712,2]
[330317797,1719256244612,-500.0,0.00016712,2]
[330317798,1719256244621,-500.0,0.00016712,2]
[330317799,1719256244631,-500.0,0.00016712,2]
[330317800,1719256244640,-150.32156491,0.00016712,2]
[330317801,1719256244650,-500.0,0.00016712,2]
[330317802,1719256244659,-500.0,0.00016712,2]
[330317803,1719256244668,-500.0,0.00016712,2]
[330317804,1719256244678,-500.0,0.00016712,2]
[330317805,1719256244687,-500.0,0.00016712,2]
[330317806,1719256244698,-486.27664327,0.00016712,2]
[330317807,1719256244707,-500.0,0.00016712,2]
[330317808,1719256244717,-519.82813838,0.00016712,2]
[330317809,1719256244726,-500.0,0.00016712,2]
[330317810,1719256244736,-512.81272887,0.00016712,2]
[330317811,1719256244746,-500.0,0.00016712,2]
[330317814,1719256244755,-500.0,0.00016712,2]
[330317817,1719256244764,-500.0,0.00016712,2]
[330317820,1719256244774,-500.0,0.00016712,2]
[330317823,1719256244783,-500.0,0.00016712,2]
[330317827,1719256244792,-500.0,0.00016712,2]
[330317829,1719256244801,-500.0,0.00016712,2]
[330317830,1719256244811,-581.19,0.00016712,2]
[330317831,1719256244820,-500.0,0.00016712,2]
[330317832,1719256244830,-500.0,0.00016712,2]
[330317833,1719256244839,-500.0,0.00016712,2]
[330317834,1719256244848,-500.0,0.00016712,2]
[330317835,1719256244859,-500.0,0.00016712,2]
[330317836,1719256244870,-500.0,0.00016712,2]
[330317837,1719256244879,-500.0,0.00016712,2]
[330317838,1719256244888,-500.0,0.00016712,2]
[330317839,1719256244897,-443.64097995,0.00016712,2]
[330317840,1719256244906,-500.0,0.00016712,2]
[330317841,1719256244915,-500.0,0.00016712,2]
[330317842,1719256244923,-500.0,0.00016712,2]
[330317843,1719256244932,-1245.77,0.00016712,2]
[330317844,1719256244942,-500.0,0.00016712,2]
[330317845,1719256244951,-937.49,0.00016712,2]
[330317846,1719256244961,-500.0,0.00016712,2]
[330317847,1719256244971,-594.24,0.00016712,2]
[330317848,1719256244982,-500.0,0.00016712,2]
[330317849,1719256244991,-500.0,0.00016712,2]
[330317850,1719256245000,-500.0,0.00016712,2]
[330317851,1719256245011,-500.0,0.00016712,2]
[330317852,1719256245019,-500.0,0.00016712,2]
[330317853,1719256245028,-500.0,0.00016712,2]
[330317854,1719256245037,-643.91767806,0.00016712,2]
[330317855,1719256245047,-874.57,0.00016712,2]
[330317856,1719256245057,-500.0,0.00016712,2]
[330317857,1719256245066,-500.0,0.00016712,2]
[330317858,1719256245075,-500.0,0.00016712,2]
[330317859,1719256245085,-500.0,0.00016712,2]
[330317860,1719256245095,-500.0,0.00016712,2]
[330317861,1719256245103,-500.0,0.00016712,2]
[330317862,1719256245112,-500.0,0.00016712,2]
[330317863,1719256245122,-500.0,0.00016712,2]
[330317864,1719256245131,-500.0,0.00016712,2]
[330317865,1719256245140,-500.0,0.00016712,2]
[330317866,1719256245148,-500.0,0.00016712,2]
[330317867,1719256245157,-500.0,0.00016712,2]
[330317868,1719256245167,-500.0,0.00016712,2]
[330317869,1719256245175,-500.0,0.00016712,2]
[330317870,1719256245185,-582.32,0.00016712,2]
[330317871,1719256245195,-500.0,0.00016712,2]
[330317872,1719256245205,-500.0,0.00016712,2]
[330317873,1719256245213,-500.0,0.00016712,2]
[330317874,1719256245222,-1536.5,0.00016712,2]
[330317875,1719256245231,-506.75348073,0.00016712,2]
[330317876,1719256245241,-500.0,0.00016712,2]
[330317877,1719256245250,-500.0,0.00016712,2]
[330317878,1719256245259,-500.0,0.00016712,2]
[330317879,1719256245268,-500.0,0.00016712,2]
[330317880,1719256245278,-500.0,0.00016712,2]
[330317881,1719256245287,-500.0,0.00016712,2]
[330317882,1719256245296,-500.0,0.00016712,2]
[330317883,1719256245306,-500.0,0.00016712,2]
[330317884,1719256245315,-519.14383529,0.00016712,2]
[330317885,1719256245324,-500.0,0.00016712,2]
[330317886,1719256245333,-500.0,0.00016712,2]
[330317887,1719256245343,-1037.06,0.00016712,2]
[330317888,1719256245352,-500.0,0.00016712,2]
[330317889,1719256245362,-500.0,0.00016712,2]
[330317890,1719256245371,-577.26659246,0.00016712,2]
[330317891,1719256245380,-180.23568312,0.00016712,2]
[330317892,1719256245389,-500.0,0.00016712,2]
[330317893,1719256245398,-500.0,0.00016712,2]
[330317894,1719256245407,-594.88603407,0.00016712,2]
[330317895,1719256245416,-500.0,0.00016712,2]
[330317896,1719256245427,-500.0,0.00016712,2]
[330317897,1719256245437,-376.95578974,0.00016712,2]
[330317898,1719256245447,-500.0,0.00016712,2]
[330317899,1719256245456,-500.0,0.00016712,2]
[330317900,1719256245465,-500.0,0.00016712,2]
[330317901,1719256245475,-500.0,0.00016712,2]
[330317902,1719256245484,-687.65,0.00016712,2]
[330317903,1719256245494,-500.0,0.00016712,2]
[330317904,1719256245503,-500.0,0.00016712,2]
[330317905,1719256245513,-500.0,0.00016712,2]
[330317906,1719256245522,-500.0,0.00016712,2]
[330317907,1719256245531,-375.89791901,0.00016712,2]
[330317908,1719256245542,-500.0,0.00016712,2]
[330317909,1719256245551,-257.6344637,0.00016712,2]
[330317910,1719256245656,-500.0,0.00016712,2]
[330317911,1719256245666,-500.0,0.00016712,2]
[330317912,1719256245676,-500.0,0.00016712,2]
[330317913,1719256245685,-500.0,0.00016712,2]
[330317914,1719256245697,-253.99,0.00016712,2]
[330317915,1719256245707,-553.0,0.00016712,2]
[330317916,1719256245716,-500.0,0.00016712,2]
[330317917,1719256245725,-500.0,0.00016712,2]
[330317918,1719256245734,-500.0,0.00016712,2]
[330317919,1719256245743,-500.0,0.00016712,2]
[330317920,1719256245753,-974.75,0.00016712,2]
[330317921,1719256245763,-500.0,0.00016712,2]
[330317922,1719256245772,-1047.68,0.00016712,2]
[330317924,1719256245781,-500.0,0.00016712,2]
[330317926,1719256245790,-500.0,0.00016712,2]
[330317927,1719256245799,-500.0,0.00016712,2]
[330317928,1719256245808,-500.0,0.00016712,2]
[330317929,1719256245817,-500.0,0.00016712,2]
[330317930,1719256245826,-500.0,0.00016712,2]
[330317931,1719256245836,-500.0,0.00016712,2]
[330317932,1719256245845,-500.0,0.00016712,2]
[330317933,1719256245854,-500.0,0.00016712,2]
[330317934,1719256245863,-500.0,0.00016712,2]
[330317935,1719256245873,-500.0,0.00016712,2]
[330317936,1719256245882,-500.0,0.00016712,2]
[330317937,1719256245891,-500.0,0.00016712,2]
[330317938,1719256245900,-500.0,0.00016712,2]
[330317939,1719256245910,-500.0,0.00016712,2]
[330317940,1719256245919,-500.0,0.00016712,2]
[330317941,1719256245929,-500.0,0.00016712,2]
[330317942,1719256245939,-7897.52736128,0.00016712,2]
[330317983,1719256501444,300.0,0.00014,2]
[330317984,1719256502667,185.0,0.00014,2]
[330317985,1719256505817,200.0,0.0002688,120]
[330317986,1719256670329,484.7462833,0.00013684,2]
[330317987,1719256680549,209.144616,0.00013699,2]
[330317988,1719256731955,521.06468489,0.00014176,7]
[330317989,1719256758325,157.894736,0.00013699,2]
[330317990,1719256802098,232.0,0.00014,2]
[330317991,1719256869448,512.3143884,9.999e-05,2]
[330317992,1719256915037,661.02191693,9.999e-05,2]
[330317993,1719256953552,661.02191693,0.0001212,2]
[330317994,1719257138038,496.98,0.00010959,2]
[330317995,1719257148673,414.15,0.00010959,2]
[330317997,1719257159229,345.12,0.00010959,2]
[330317998,1719257169794,287.6,0.00010959,2]
[330317999,1719257180439,239.67,0.00010959,2]
[330318000,1719257190939,199.72,0.00010959,2]
[330318001,1719257201727,166.44,0.00010959,2]
[330318002,1719257207380,2242.01398174,0.00010959,2]
[330318003,1719257212255,832.21,0.00010959,2]
[330318004,1719257221033,5054.78816602,0.00010959,2]
[330318005,1719257221396,4720.58119437,0.00010959,2]
[330318006,1719257239205,920.64223925,9.999e-05,2]
[330318007,1719257338297,157.894736,0.00013699,2]
[330318008,1719257345535,233.54634246,9.999e-05,2]
[330318010,1719257360608,-826.14690577,0.00014001,2]
[330318011,1719257360716,-742.31703025,0.00014001,2]
[330318012,1719257360766,-83.82987552,0.00014001,2]
[330318016,1719257375392,155.00232503,9.999e-05,2]
[330318017,1719257385622,-859.192782,0.00014001,2]
[330318018,1719257385687,-341.44537405,0.00014001,2]
[330318019,1719257385740,-517.74740795,0.00014001,2]
[330318020,1719257411564,-893.56049328,0.00014001,2]
[330318021,1719257411675,-502.38535637,0.00014001,2]
[330318022,1719257411730,-248.68482197,0.00014001,2]
[330318034,1719257435377,-16979.01463603,0.00014001,2]
[330318036,1719257435389,-661.02191693,0.00014003,2]
[330318038,1719257435398,-159.35965211,0.00014003,2]
[330318039,1719257435409,-286.39912426,0.00014005,2]
[330318041,1719257435419,-291.63755544,0.00015019,2]
[330318044,1719257435428,-15144.68597516,0.00015097,2]
[330318046,1719257435439,-700.89658288,0.00015097,2]
[330318423,1719257440072,-10211.86191392,0.00015097,2]
[330318424,1719257440083,-11115.63569694,0.00015098,2]
[330318425,1719257440093,-268.02330055,0.00016118,7]
[330318426,1719257440103,-11185.44513748,0.00016118,2]
[330318427,1719257441058,-19104.80954245,0.00016118,2]
[330318429,1719257441069,-30000.0,0.00016119,2]
[330318430,1719257441080,-30000.0,0.00016119,2]
[330318431,1719257441089,-1313.011853,0.00016121,2]
[330318432,1719257441099,-3454.97517711,0.00016121,2]
[330318433,1719257441109,-2825.49865465,0.00016121,2]
[330318434,1719257441119,-299.82241004,0.00016121,2]
[330318435,1719257441128,-6174.34174894,0.00016122,2]
[330318436,1719257441138,-882.91797888,0.00016122,2]
[330318438,1719257441148,-207.71530322,0.00016122,2]
[330318440,1719257441158,-274.31265903,0.00016123,2]
[330318441,1719257441168,-521.06468489,0.00016198,7]
[330318443,1719257441178,-373.78265909,0.00016199,2]
[330318445,1719257441188,-154.2734735,0.000162,2]
[330318446,1719257441198,-153.0,0.00016274,2]
[330318447,1719257441208,-1999.99704988,0.00016338,2]
[330318448,1719257441219,-500.0,0.00016438,2]
[330318449,1719257441228,-500.0,0.00016438,2]
[330318450,1719257441239,-584.13055359,0.00016438,2]
[330318451,1719257441249,-500.0,0.00016438,2]
[330318452,1719257441259,-500.0,0.00016438,2]
[330318453,1719257441270,-500.0,0.00016438,2]
[330318454,1719257441280,-500.0,0.00016438,2]
[330318455,1719257441290,-500.0,0.00016438,2]
[330318456,1719257441300,-500.0,0.00016438,2]